Cogmind - Beta 15 @@@ ROGUE MODE // 2025.10.11 @ 19:02:55 Player: NQH Result: Destroyed by S-10 Pest with Light Assault Rifle Performance ------------- Evolutions (1) 500 Regions Visited (2) 400 Robots Destroyed (8) 40 Value Destroyed (166) 166 Prototype IDs (0) 0 Alien Tech Used (0) 0 Bonus (0) 0 TOTAL SCORE: 1106 Bonus ------- None Cogmind --------- Core Integrity 0/400 Matter 227/300 Energy 100/100 System Corruption 0% Temperature Cool (0) Movement Core (50) Location -9/Materials Parts ------- > --- POWER (2) -------- (None) > --- PROPULSION (3) --- (None) > --- UTILITY (2) ------ Visual Processing Unit Visual Processing Unit > --- WEAPON (2) ------- Mace > --- INVENTORY (5) ---- Improved Ion Engine Mace Mace Mace Peak State ------------ > --- POWER ------------ Improved Ion Engine > --- PROPULSION ------- (None) > --- UTILITY ---------- Visual Processing Unit Visual Processing Unit > --- WEAPON ----------- Mace > --- INVENTORY -------- Mace Mace Mace [Rating: 8] Favorites ----------- Power Improved Ion Engine Engine Improved Ion Engine Propulsion Flight Unit Flight Unit Flight Unit Utility Visual Processing Unit Processor Visual Processing Unit Weapon Mace Launcher Mini Grenade Launcher Impact Weapon Mace Build | -11 -10 -9 ------- Run | Yrd Mat Mat Slots Evolved 2 | . . 2 Power 1 | . . 1 Propulsion 1 | . . 1 Utility . | . . . Weapon . | . . . Parts Attached 9 | . 7 2 Power 1 | . . 1 Engine 1 | . . 1 Core . | . . . Reactor . | . . . Propulsion 1 | . . 1 Treads . | . . . Leg . | . . . Wheel . | . . . Hover . | . . . Flight 1 | . . 1 Utility 4 | . 4 . Device . | . . . Storage . | . . . Processor 4 | . 4 . Hackware . | . . . Protection . | . . . Artifact . | . . . Weapon 3 | . 3 . Energy Gun . | . . . Energy Cannon . | . . . Ballistic Gun . | . . . Ballistic Cannon . | . . . Launcher 2 | . 2 . Special Weapon . | . . . Impact Weapon 1 | . 1 . Slashing Weapon . | . . . Piercing Weapon . | . . . Special Melee Weapon . | . . . Unidentified Prototypes . | . . . Parts Lost 1 | . . 1 Power . | . . . Propulsion 1 | . . 1 Utility . | . . . Weapon . | . . . Highest Loss Streak 1 | . . 1 To Critical Strikes . | . . . Average Backups 2 | . . 3 Power . | . . . Propulsion . | . . . Utility . | . . . Weapon 1 | . . 3 Tool/Special . | . . . Unused Backups 5 | . 2 3 Power . | . . . Propulsion . | . . . Utility . | . . . Weapon 5 | . 2 3 Tool/Special . | . . . Average Slot Usage (%) 26 | . 14 33 Processor 17 | . 8 22 Launcher 1 | . 4 . Impact Weapon 8 | . 2 11 Peak Build Rating 8 | . 7 8 Average Rating 4 | . 2 6 On Entrance 2 | . . 6 Naked Turns 19 | . 19 . Heaviest Build 2 | . 2 2 Greatest Support 4 | 3 3 4 Greatest Overweight (x) . | . . . Average Overweight (x) . | . . . Largest Inventory Capacity 5 | 5 5 5 Average Capacity 5 | 5 5 5 Most Carried 4 | . 3 4 Average Carried 2 | . . 3 Final Capacity 5 | 5 5 5 Final Carried 4 | . 3 4 Class Distribution -------------------- 100% | Mutant Dominant Class ---------------- Mutant | -10/Materials Mutant | -9/Materials Resources | -11 -10 -9 ----------- Run | Yrd Mat Mat Matter Collected 242 | 131 . 111 Remotely . | . . . Salvage Created 189 | . 45 144 Parts 10 | . 4 6 Haulers Intercepted . | . . . Recyclers Shooed . | . . . Parts Field Recycled . | . . . Retrieved Matter . | . . . Parts Self-Destructed . | . . . Prevented . | . . . Kills | -11 -10 -9 ------- Run | Yrd Mat Mat Combat Hostiles Destroyed 6 | . 1 5 Melee 3 | . . 3 AOE 1 | . 1 . Classes Destroyed 4 | . 2 2 Worker 2 | . 1 1 Swarmer 3 | . . 3 Grunt 1 | . 1 . Sentry 2 | . . 2 Best Kill Streak 3 | . 2 3 Combat Bots Only 3 | . 1 3 Max Kills in Single Turn 1 | . 1 1 Gunslinging . | . . . Exploded 1 | . 1 . Melee 1 | . . 1 Uniques/NPCs Destroyed . | . . . Combat | -11 -10 -9 -------- Run | Yrd Mat Mat Hostile Shots Fired 68 | . 6 62 Missed 16 | . 1 15 Hits 52 | . 5 47 Projectile 52 | . 5 47 Critical Strikes 1 | . . 1 Damage Taken 616 | . 87 529 Core 483 | . 76 407 Absorbed by Shields . | . . . Core Remaining (%) 84 | 100 69 . Volleys Fired 2 | . 2 . Largest 2 | . 2 . Hottest 60 | . 60 . Shots Fired 3 | . 3 . Gun . | . . . Cannon . | . . . Launcher 3 | . 3 . Special . | . . . Kinetic . | . . . Thermal . | . . . Explosive 3 | . 3 . Electromagnetic . | . . . Robot Hit Streak 1 | . 1 . Robot Miss Streak 1 | . 1 . Penetration Max . | . . . Secondary Targets . | . . . Shots Hit Robots 19 | . 1 18 Core Hits 5 | . 3 2 Critical Kills 1 | . . 1 Critical Parts Destroyed . | . . . Critical Strikes 2 | . . 2 Smash 2 | . . 2 Melee Attacks 24 | . . 24 Impact 24 | . . 24 Slashing . | . . . Piercing . | . . . Sneak Attacks 1 | . . 1 Combat Hostiles . | . . . Follow-up Attacks . | . . . Damage Inflicted 564 | . 122 442 Guns . | . . . Cannons . | . . . Explosions 122 | . 122 . Melee 442 | . . 442 Ramming . | . . . Kinetic . | . . . Thermal . | . . . Explosive 122 | . 122 . Electromagnetic . | . . . Impact 442 | . . 442 Slashing . | . . . Piercing . | . . . Highest Corruption . | . . . Average Corruption . | . . . Corruption Purged . | . . . Corruption Blocked . | . . . Overload Shots . | . . . Overflow Damage 62 | . . 62 Projectiles . | . . . Explosions . | . . . Melee 62 | . . 62 Knockbacks 1 | . . 1 Impact 1 | . . 1 Kinetic . | . . . Secondary . | . . . Self-Inflicted Damage . | . . . Shots . | . . . Rammed . | . . . Targets Rammed . | . . . Kicked . | . . . Crushed . | . . . Highest Temperature 1 | . 1 . Average Temperature 1 | . 1 . Received Heat Transfer 156 | . 30 126 Siege Activations . | . . . Martial Activations . | . . . Shielding Activations . | . . . Robots Disrupted . | . . . Combat Hostiles . | . . . Robots Corrupted 3 | . . 3 Combat Hostiles 2 | . . 2 Parts Fried 3 | . . 3 Impact Corruptions 6 | . . 6 Robots Melted . | . . . Combat Hostiles . | . . . Parts Melted . | . . . Heat Transferred . | . . . Parts Sabotaged . | . . . Parts Stolen . | . . . Parts Stripped . | . . . Power Chain Reactions . | . . . Alert | -11 -10 -9 ------- Run | Yrd Mat Mat Maximum Alert Level . | . . . Low Security (%) 100 | 100 100 100 Level 1 . | . . . Level 2 . | . . . Level 3 . | . . . Level 4 . | . . . Level 5 . | . . . High Security . | . . . Max Security . | . . . Peak Influence 96 | . 72 96 Initial 21 | . . 21 Average 44 | . 29 55 Influence Increases 207 | . 72 135 Destroy 0b10 Robot/C 120 | . 20 100 Destroy 0b10 Robot/NC 10 | . 5 5 Destroy Leader 40 | . 10 30 Disable Machine 15 | . 15 . Destroy Structure 22 | . 22 . Influence Decreases 121 | . 20 101 Entered New Map 31 | . . 31 Time Decay 80 | . 20 60 Lost Part 10 | . . 10 Squads Dispatched 2 | . 1 1 Investigation . | . . . Extermination . | . . . Reinforcement 2 | . 1 1 Assault . | . . . Garrison . | . . . Intercept . | . . . Searches Triggered . | . . . Construction Impeded . | . . . Haulers Reinforced . | . . . Active Scanning Responses . | . . . Cargo Convoy Interrupts . | . . . Stealth | -11 -10 -9 --------- Run | Yrd Mat Mat Distress Signals 1 | . . 1 Communications Jammed . | . . . Distress Signals . | . . . Times Spotted 18 | . 4 14 Peak Tracking Total 6 | . 3 6 Tactical Retreats . | . . . Traps | -11 -10 -9 ------- Run | Yrd Mat Mat Traps Triggered 1 | . 1 . Indirectly . | . . . Trap Hack Attempts . | . . . Triggered . | . . . Disarmed . | . . . Reprogrammed . | . . . Reused . | . . . Traps Extracted . | . . . Installed . | . . . Triggered . | . . . Machines | -11 -10 -9 ---------- Run | Yrd Mat Mat Machines Disabled 1 | . 1 . Max in Single Turn 1 | . 1 . Machines Repaired . | . . . Machines Dismantled . | . . . Machines Sabotaged . | . . . Overloaded Fab Kills . | . . . Hacking | -11 -10 -9 --------- Run | Yrd Mat Mat Machines Accessed . | . . . Terminals . | . . . Fabricators . | . . . Repair Stations . | . . . Recycling Units . | . . . Scanalyzers . | . . . Garrison Access . | . . . Total Hacks . | . . . Successful . | . . . Failed . | . . . Catastrophic . | . . . Database Lockouts . | . . . Manual . | . . . Terminals . | . . . Fabricators . | . . . Repair Stations . | . . . Recycling Units . | . . . Scanalyzers . | . . . Garrison Access . | . . . Terminal Hacks . | . . . Fabricator Hacks . | . . . Repair Station Hacks . | . . . Recycling Unit Hacks . | . . . Scanalyzer . | . . . Garrison Access Hacks . | . . . Unauthorized Hacks . | . . . Terminals . | . . . Fabricators . | . . . Repair Stations . | . . . Recycling Units . | . . . Scanalyzers . | . . . Garrison Access . | . . . Data Cores Recovered . | . . . Used . | . . . Hacking Detections . | . . . Full Trace Events . | . . . Feedback Events . | . . . Feedback Blocked . | . . . Robot Schematics Acquired . | . . . Robots Built . | . . . Authchips . | . . . Time . | . . . Total Robot Build Rating . | . . . Part Schematics Acquired . | . . . Parts Built . | . . . Authchips . | . . . Time . | . . . Total Part Build Rating . | . . . Parts Repaired . | . . . Time . | . . . Parts Recycled . | . . . Recycled Matter . | . . . Retrieved Matter . | . . . Retrieved Components . | . . . Parts Scanalyzed . | . . . Part Schematics Acquired . | . . . Parts Damaged . | . . . Bothacking | -11 -10 -9 ------------ Run | Yrd Mat Mat Used RIF Installer . | . . . Robots Hacked . | . . . Non-combat . | . . . Combat . | . . . Robot Hacks Applied . | . . . Relay Couplers Released . | . . . Fabnet Peak Effective % . | . . . Robots Rewired . | . . . Allies Hacked . | . . . Hacks Repelled . | . . . Allies | -11 -10 -9 -------- Run | Yrd Mat Mat Total Allies . | . . . Largest Group . | . . . Highest-Rated Group . | . . . Highest-Rated Ally . | . . . Total Orders . | . . . Ally Attacks . | . . . Total Damage . | . . . Kills . | . . . Allies Corrupted . | . . . Allies Melted . | . . . Intel | -11 -10 -9 ------- Run | Yrd Mat Mat Active Infowar (turns) 148 | . 17 131 Optics 148 | . 17 131 Robot Analysis Total . | . . . Derelict Logs Recovered . | . . . Drone Launches . | . . . Drone Recoveries . | . . . Exploration | -11 -10 -9 ------------- Run | Yrd Mat Mat Turns Passed 205 | 13 61 131 Spaces Moved 227 | 25 77 125 Core 222 | 25 77 120 Treads . | . . . Legs . | . . . Wheels . | . . . Hover . | . . . Flight 5 | . . 5 Fastest Speed 40 | 50 50 40 Average Speed 49 | 50 50 49 Slowest Speed 50 | 50 50 50 Overloaded Moves . | . . . Propulsion Burnouts . | . . . Robots Hopped . | . . . Potential Cave-ins . | . . . Cave-ins Triggered . | . . . Exploration Rate (%) 15 | 4 26 16 Regions Visited 2 Branch Regions . Pre-discovered Areas . | . . . Known Exits Taken . | . . . Unknown Exits Taken 2 | 1 1 . Scrap Searched . | . . . Spaces Dug . | . . . Terrain Destroyed 22 | . 22 . Melee . | . . . Projectile . | . . . AOE 22 | . 22 . Terrain Rammed . | . . . Walls Destroyed . | . . . Machines Disabled . | . . . Actions | -11 -10 -9 --------- Run | Yrd Mat Mat Total 270 | 24 94 152 Wait . | . . . Move 225 | 24 76 125 Hop . | . . . Pick Up 5 | . 5 . Fast Attach 9 | . 7 2 Attach . | . . . Detach 3 | . 2 1 Swap . | . . . Drop 2 | . 2 . Fire 2 | . 2 . Melee 24 | . . 24 Ram . | . . . Kick . | . . . Crush . | . . . Escape Stasis . | . . . Rewire . | . . . Trap . | . . . Miscellaneous . | . . . Route ------- -11/Scrapyard -10/Materials -9/Materials History --------- Turn | Location | Event 2 | -11/Scrapyard | Discovered new exit (range 16) 14 | -11/Scrapyard | Entered Materials 39 | -10/Materials | Discovered new exit (range 10) 59 | -10/Materials | Released all parts (2) 75 | -10/Materials | Entered another Materials area 75 | -9/Materials | Evolved 2 slots: Power x1, Propulsion x1 128 | -9/Materials | Core integrity fell below 50% 146 | -9/Materials | Core integrity fell below 20% 206 | -9/Materials | Destroyed by S-10 Pest with Light Assault Rifle Last Messages --------------- 00150_ Destroyed Heat Sink. 00150_ Y-45 Defender system corrupted by crushing effect. 00151_ Y-45 Defender system terminally corrupted. 00152_ Acquired 44 matter. 00174_ Critical hit (Burn: +37). 00177_ K-01 Serf collects debris. 00183_ Y-45 Defender suffers critical hit (Smash). 00183_ Y-45 Defender destroyed. 00185_ K-01 Serf collects debris. 00186_ Acquired 51 matter. 00187_ K-01 Serf collects debris. 00187_ Acquired Imp. Ion Engine. 00190_ K-01 Serf collects debris. 00191_ Sneak attack on K-01 Serf. 00191_ Destroyed Wheel. 00191_ K-01 Serf system corrupted by crushing effect. 00191_ K-01 Serf knocked back. 00192_ K-01 Serf system terminally corrupted. 00194_ K-01 Serf collects debris. Map ----- +----------------------------------------------------+ | ????????????????????????????????# #?????????? | | ????????????????????????????????# #?????????? | | ????????????????????????######### #?????????+ | | ????????????????????????# ] # #?????????# | | ????????????????????????# + #?????????# | | ????????????????????????# ! # #?????????#### | | ????????????????????????######### #????????????? | | ?????????????????################ #????????????? | | ????????? #????????????? | | ?????????????????######### #????????????? | | ???????????########## #### #????????????? | | ???????????# ! [ +% ########????????????? | | ???????????# =] # #???????????????????? | | ???????????# =[ # #???????????????????? | | ???????????# # #???????????????????? | | ???????????# "T" # #???????????????????? | | ???????????# """ # #???????????????????? | | ???????????############### #???????????????????? | | ????????????????######???# #???????????????????? | | ????????????????# ??# #???????????????????? | | ????????????????# ??# #???????????????????? | | ????????????????# ?# #???????????????????? | | ????????????????# ?# #???????????????????? | | ????????????????# k# #???????????????????? | | ????????????????# #s #???????????????????? | | ????????????????# @s +???????????????????? | | ????????????????# #s w#???????????????????? | | ????????????????# # #???????????????????? | | ????????????????########?# #???????????????????? | | ????????????????????????? ??????????????????? | | ????????????????????????? ?????????????????? | | ????????????????????????? ????????????????? | | ?????????????????????????##+##### ???????????????? | | ?????????????????????????????????? ??????????????? | | ??????????????????????????????????? ?????????????? | | ????????????????????????????????????#????????????? | | ?????????????????????????????????????????????????? | | ?????????????????????????????????????????????????? | | ?????????????????????????????????????????????????? | | ?????????????????????????????????????????????????? | | ?????????????????????????????????????????????????? | | ?????????????????????????????????????????????????? | | ?????????????????????????????????????????????????? | | ?????????????????????????????????????????????????? | | | | | | | | | | | | | +----------------------------------------------------+ Best States ------------- Heat Dissipation 28 Energy Generation 5 Energy Capacity 100 Matter Stores 231 Matter Capacity 300 Sight Range 18 Terrain Scan Density 10 Evasion (%) 50 Targeting Accuracy 5 Item Schematics ----------------- None Robot Schematics ------------------ None Fabricated ------------ Nothing Repaired ---------- Nothing Alien Tech Used ----------------- None Achievements -------------- None Challenges ------------ None Game ------ Seed AntigravInertialMonowheel Manual? 0 Play Time 00:02:42 Cumulative 26.8 hours Start 2025.10.11 @ 19:01:15 End 2025.10.11 @ 19:02:55 Sessions 1 Manual Loads 0 Difficulty Rogue Special Mode None Game No. 103 Rogue 103 Adventurer 0 Explorer 0 Win Type - Total 0 Types 0/0/0/0/0/0/0/0/0/0 Lore% 10 Gallery% 29 Achievement% 26 Wizard Run 0 Options --------- Layout 1 ASCII 0 Keyboard 1 Movement Vi Keybinds 0 Fullscreen 1 Font 16/SmallcapsGlow Map View 55x38 Zoom Use 0% Tactical HUD 1 Map Filters NONE Filters NONE Steam 1 RUN: 79eb0a15-d875-4cc1-9cad-fd9f23954953